bitfinex/quotes_SOLUSD_20251025
["timestamp","ask_amount","ask_price","bid_price","bid_amount"]
[1761357872736,0.81,193.98,193.93,4.35853899]
[1761357872943,0.81,193.98,193.94,10.87647521]
[1761357873156,2.44407614,193.98,193.93,0.66]
[1761357873363,1.63407614,193.97,193.92,16.69324088]
[1761357873662,2.34407614,193.97,193.92,39.57324088]
[1761357873862,0.71,193.96,193.92,39.57324088]
[1761357874058,0.71,193.96,193.92,16.69324088]
[1761357874255,1.63407614,193.97,193.93,0.66]
[1761357874457,2.34407614,193.97,193.93,0.66]
[1761357875462,1.63407614,193.97,193.93,5.81628893]
[1761357875642,0.71,193.96,193.93,5.81628893]
[1761357875842,0.71,193.96,193.93,5.15628893]
[1761357879666,2.44407614,193.98,193.93,5.81628893]
[1761357879852,0.71,193.97,193.93,5.81628893]
[1761357882049,0.71,193.97,193.93,5.15628893]
[1761357883567,5.25522879,193.98,193.94,0.66]
[1761357883868,6.88930493,193.98,193.93,6.79036507]
[1761357884056,0.71,193.97,193.93,7.45036507]
[1761357884975,7.59930493,193.98,193.94,0.66]
[1761357885659,5.96522879,193.98,193.94,0.66]
[1761357885861,5.96522879,193.98,193.94,2.29407614]
[1761357886871,5.96522879,193.98,193.94,0.66]
[1761357890462,5.93522879,193.98,193.94,0.66]
[1761357891955,5.93522879,193.98,193.94,2.29407614]
[1761357892155,0.68,193.97,193.94,1.63407614]
[1761357893348,5.25522879,193.98,193.94,2.30407614]
[1761357893557,5.93522879,193.98,193.94,2.30407614]
[1761357895090,5.25522879,193.98,193.93,5.15628893]
[1761357895274,5.25522879,193.98,193.92,33.75647521]
[1761357895580,0.68,193.97,193.93,1.63407614]
[1761357895757,0.68,193.97,193.93,2.30407614]
[1761357895963,7.56930493,193.98,193.94,0.67]
[1761357897982,6.88930493,193.98,193.93,1.63407614]
[1761357898179,0.71,193.97,193.93,0.72]
[1761357898690,0.71,193.97,193.93,5.87648868]
[1761357898979,0.71,193.97,193.94,0.72]
[1761357899578,6.88930493,193.98,193.94,0.72]
[1761357899753,7.59930493,193.98,193.94,0.72]
[1761357900572,0.71,193.97,193.94,0.72]
[1761357900780,1.63407614,193.95,193.88,5.15782958]
[1761357900978,1.63407614,193.93,193.84,5.15889393]
[1761357901171,1.63407614,193.92,193.88,10.87647521]
[1761357901362,1.63407614,193.92,193.87,10.87647521]
[1761357901561,2.34407614,193.93,193.88,0.72]
[1761357901972,0.71,193.92,193.88,0.72]
[1761357902169,2.34407614,193.92,193.87,17.66862101]
[1761357902370,7.50085496,193.92,193.86,10.87647521]
[1761357902597,1.63407614,193.91,193.86,11.59647521]
[1761357902780,2.34407614,193.91,193.87,0.72]
[1761357904191,0.71,193.91,193.87,5.87809121]
[1761357904771,6.79085496,193.92,193.87,6.79216735]
[1761357904973,7.50085496,193.92,193.88,0.72]
[1761357906067,5.86677882,193.92,193.88,0.72]
[1761357906996,0.71,193.91,193.88,0.72]
[1761357908397,5.15677882,193.92,193.88,0.72]
[1761357908570,5.86677882,193.92,193.88,0.72]
[1761357910771,0.71,193.91,193.88,0.72]
[1761357911898,0.71,193.91,193.86,10.87647521]
[1761357912100,3.26516407,193.91,193.86,14.15163928]
[1761357912594,3.26516407,193.9,193.85,10.87647521]
[1761357912793,7.71272763,193.89,193.83,31.31429359]
[1761357912982,2.55516407,193.88,193.84,10.87647521]
[1761357913181,3.26516407,193.88,193.84,10.87647521]
[1761357913384,0.71,193.87,193.84,10.87647521]
[1761357914398,3.26516407,193.88,193.84,11.59647521]
[1761357914576,5.15756356,193.93,193.85,3.27516407]
[1761357914786,5.86582228,193.96,193.86,10.87647521]
[1761357915099,35.62,193.95,193.92,2.55516407]
[1761357915302,35.62,193.95,193.91,2.55516407]
[1761357915480,0.71,193.94,193.91,2.55516407]
[1761357915799,35.62,193.95,193.91,0.72]
[1761357915970,36.33,193.95,193.91,3.27516407]
[1761357916176,41.48601214,193.95,193.91,3.27516407]
[1761357917286,35.62,193.95,193.91,2.55516407]
[1761357917481,35.62,193.95,193.92,0.72]
[1761357917679,35.12,193.95,193.92,0.72]
[1761357917880,40.98610855,193.95,193.91,2.55516407]
[1761357918189,0.71,193.94,193.9,2.55516407]
[1761357918506,40.27610855,193.95,193.91,0.72]
[1761357918682,40.98610855,193.95,193.9,3.27516407]
[1761357918882,0.71,193.94,193.9,3.27516407]
[1761357919387,0.71,193.94,193.88,2.55516407]
[1761357919388,2.55516407,193.93,193.88,2.55516407]
[1761357919685,2.55516407,193.93,193.87,8.43303]
[1761357919886,0.68,193.92,193.87,8.43303]
[1761357920183,3.23516407,193.92,193.87,8.43303]
[1761357920404,3.23516407,193.92,193.87,3.27516407]
[1761357920576,3.23516407,193.91,193.86,0.72]
[1761357920977,0.68,193.9,193.86,0.72]
[1761357921408,7.71231846,193.91,193.86,3.27516407]
[1761357921801,7.71231846,193.91,193.87,0.72]
[1761357922423,8.39231846,193.91,193.86,3.27516407]
[1761357922632,3.23516407,193.9,193.86,0.72]
[1761357922797,2.55516407,193.9,193.86,0.72]
[1761357923631,8.39225592,193.91,193.86,0.72]
[1761357924798,5.83709185,193.91,193.86,0.72]
[1761357925114,8.39225592,193.91,193.86,0.72]
[1761357926701,7.71225592,193.91,193.86,0.72]
[1761357927219,8.39225592,193.91,193.86,0.72]
[1761357927712,8.39225592,193.91,193.86,5.87835941]
[1761357927913,8.39225592,193.91,193.87,0.72]
[1761357934417,5.83709185,193.91,193.87,0.72]
[1761357934721,8.39225592,193.91,193.87,0.72]
[1761357936541,2.55516407,193.88,193.84,0.72]
[1761357936733,2.55516407,193.87,193.84,0.72]
[1761357937137,2.55516407,193.88,193.84,0.72]
[1761357937627,2.55516407,193.85,193.81,0.72]
[1761357937830,0.68,193.85,193.81,0.72]
[1761357938145,3.23516407,193.85,193.81,0.72]
[1761357938820,2.55516407,193.84,193.81,0.72]
[1761357941549,3.23516407,193.84,193.8,16.03638056]
[1761357941737,3.23516407,193.84,193.8,16.75638056]
[1761357941921,3.23516407,193.84,193.8,16.03638056]
[1761357942115,2.55516407,193.84,193.81,0.72]
[1761357942320,0.68,193.85,193.81,0.72]
[1761357942553,2.55516407,193.84,193.81,0.72]
[1761357943121,3.23516407,193.84,193.81,0.72]
[1761357943421,3.23516407,193.84,193.8,16.75638056]
[1761357944721,2.55516407,193.84,193.81,0.72]
[1761357944921,3.23516407,193.84,193.8,5.87990535]
[1761357945426,2.55516407,193.84,193.81,0.72]
[1761357946124,3.23516407,193.84,193.81,0.72]
[1761357946635,8.39379814,193.85,193.81,0.72]
[1761357949536,7.71379814,193.85,193.81,0.72]
[1761357952441,7.71379814,193.85,193.81,5.87968655]
[1761357952626,7.71379814,193.85,193.82,0.71]
[1761357953026,5.15831364,193.87,193.83,2.55516407]
[1761357953551,5.15831364,193.87,193.84,0.71]
[1761357955165,8.41347771,193.87,193.82,5.86929857]
[1761357955536,8.41347771,193.87,193.82,5.15929857]
[1761357955744,8.41347771,193.87,193.83,0.71]
[1761357956131,7.71347771,193.87,193.83,0.71]
[1761357958056,5.15831364,193.87,193.83,0.71]
[1761357959051,145.55303402,193.88,193.83,0.71]
[1761357959238,3.24516407,193.87,193.83,0.71]
[1761357960353,5.1583617,193.86,193.83,0.71]
[1761357960658,40.8183617,193.86,193.83,0.71]
[1761357961257,41.5083617,193.86,193.82,0.66]
[1761357961433,43.37352577,193.86,193.79,13.43163928]
[1761357961644,2.55516407,193.83,193.78,4.9893808]
[1761357961840,2.55516407,193.83,193.79,0.66]
[1761357962864,7.71434445,193.83,193.79,0.66]
[1761357963856,2.55516407,193.83,193.79,5.82020694]
[1761357964058,2.55516407,193.83,193.8,0.66]
[1761357964229,7.71409645,193.84,193.8,0.66]
[1761357964654,0.69,193.83,193.78,8.37561266]
[1761357964858,0.69,193.83,193.79,0.66]
[1761357965058,3.24516407,193.83,193.79,0.66]
[1761357965258,8.4043885,193.83,193.79,0.66]
[1761357965951,8.4043885,193.83,193.77,18.59237105]
[1761357965952,2.55516407,193.8,193.77,10.87647521]
[1761357966153,2.55516407,193.78,193.75,0.2]
[1761357966359,2.55516407,193.77,193.75,0.2]
[1761357966760,43.37574174,193.78,193.75,0.86]
[1761357967273,35.66,193.78,193.76,0.66]
[1761357967767,2.55516407,193.82,193.76,3.21516407]
[1761357967975,35.66,193.8,193.76,3.21516407]
[1761357968178,35.66,193.8,193.77,3.21516407]
[1761357968578,35.66,193.8,193.78,0.66]
[1761357970274,2.55516407,193.82,193.78,0.66]
[1761357970482,7.71465279,193.82,193.78,0.66]
[1761357972770,6.79652517,193.82,193.78,0.66]
[1761357973881,5.15948872,193.82,193.78,0.66]
[1761357979079,5.15948872,193.82,193.78,2.29703645]
[1761357979564,5.84948872,193.82,193.78,2.29703645]
[1761357980673,5.15948872,193.82,193.79,0.69]
[1761357981269,5.86948872,193.82,193.76,5.16089691]
[1761357981469,5.15948872,193.82,193.79,0.69]
[1761357982672,40.81948872,193.82,193.79,0.69]
[1761357982991,41.52948872,193.82,193.76,5.16089691]
[1761357983176,41.52948872,193.82,193.77,0.69]
[1761357984089,40.81948872,193.82,193.77,0.69]
[1761357984392,0.71,193.81,193.77,0.69]
[1761357985369,5.8698266,193.81,193.77,0.69]
[1761357985897,5.1598266,193.81,193.77,0.69]
[1761357986073,5.1598266,193.81,193.77,2.32703645]
[1761357986991,5.1598266,193.81,193.78,0.69]
[1761357990798,5.8698266,193.81,193.78,0.69]
[1761357991674,5.1598266,193.81,193.78,0.69]
[1761357993978,41.52943972,193.82,193.78,0.69]
[1761357994495,35.66,193.82,193.78,2.32703645]
[1761357994695,35.66,193.82,193.78,7.48750088]
[1761357994874,35.66,193.82,193.79,0.69]
[1761357995704,40.8194654,193.82,193.79,0.69]
[1761357996673,35.66,193.82,193.79,0.69]
[1761358002973,35.64,193.82,193.79,0.69]
[1761358007308,108.06889392,193.85,193.79,7.48723054]
[1761358007508,35.64,193.84,193.79,7.48723054]
[1761358007728,102.2,193.85,193.82,1.63703645]
[1761358007902,137.84,193.85,193.83,1.63703645]
[1761358008211,137.84,193.85,193.81,1.63703645]
[1761358008587,137.84,193.85,193.82,0.69]
[1761358008889,0.71,193.84,193.8,7.48694038]
[1761358009088,0.71,193.84,193.79,6.79722748]
[1761358009288,0.71,193.84,193.8,1.63703645]
[1761358009505,0.71,193.84,193.8,0.69]
[1761358009702,2.34703645,193.84,193.78,7.50747812]
[1761358010185,2.29703645,193.83,193.78,5.87044167]
[1761358010606,0.66,193.82,193.78,5.87044167]
[1761358011107,36.3,193.82,193.78,5.87044167]
[1761358011310,36.3,193.82,193.79,0.71]
[1761358013415,36.3,193.82,193.78,5.87044167]
[1761358013590,41.45945377,193.82,193.78,0.71]
[1761358014826,40.79945377,193.82,193.78,7.50750595]
[1761358015002,35.64,193.82,193.78,7.50750595]
[1761358015325,35.64,193.82,193.79,0.71]
[1761358020207,36.3,193.82,193.79,0.71]
[1761358023226,2.29703645,193.81,193.75,0.87]
[1761358023527,35.64,193.8,193.75,0.87]
[1761358023705,36.3,193.8,193.75,0.87]
[1761358023905,35.64,193.8,193.76,0.67]
[1761358024121,36.3,193.8,193.76,0.67]
[1761358024427,41.45999704,193.8,193.76,0.67]
[1761358026709,41.45999704,193.8,193.77,5.36128452]
[1761358027637,41.45999704,193.8,193.76,0.67]
[1761358027935,41.45999704,193.8,193.77,5.36128452]
[1761358028608,41.45999704,193.8,193.76,0.67]
[1761358028810,41.45999704,193.8,193.76,6.03128452]
[1761358030213,0.66,193.79,193.76,5.36128452]
[1761358030412,0.66,193.79,193.76,6.03128452]
[1761358030844,40.79999704,193.8,193.77,0.67]
[1761358031317,40.79999704,193.8,193.77,6.70128452]
[1761358034731,41.45999704,193.8,193.77,6.03128452]
[1761358034934,0.66,193.79,193.75,0.87]
[1761358035118,0.66,193.79,193.76,8.5895433]
[1761358037327,5.82027495,193.79,193.76,8.5895433]
[1761358037516,35.64,193.78,193.76,8.5895433]
[1761358042738,36.32,193.78,193.76,7.9195433]
[1761358043538,35.64,193.78,193.76,7.9195433]
[1761358046657,35.64,193.78,193.76,8.5795433]
[1761358053437,40.80051394,193.78,193.76,7.9195433]
[1761358053955,40.80051394,193.78,193.76,8.5795433]
[1761358054159,40.80051394,193.78,193.76,0.66]
[1761358054333,40.80051394,193.78,193.76,8.5795433]
[1761358055953,35.64,193.78,193.76,8.5795433]
[1761358060162,35.64,193.78,193.77,0.66]
[1761358060465,35.64,193.78,193.76,8.5795433]
[1761358062873,35.64,193.78,193.76,7.9195433]
[1761358063052,35.64,193.78,193.77,0.66]
[1761358063241,5.16023465,193.79,193.77,0.66]
[1761358063442,35.64,193.78,193.76,8.5795433]
[1761358063860,5.16023465,193.79,193.76,8.5795433]
[1761358064042,35.64,193.78,193.76,8.5795433]
[1761358064870,35.64,193.78,193.76,0.66]
[1761358065175,35.64,193.78,193.77,8.5795433]
[1761358076571,5.16023465,193.79,193.77,8.5795433]
[1761358076767,40.80023465,193.79,193.77,8.5795433]
[1761358085467,0.67,193.78,193.77,8.5795433]
[1761358085776,3.22825878,193.78,193.75,0.2]
[1761358085975,2.55825878,193.76,193.75,0.2]
[1761358086162,3.22825878,193.76,193.75,8.7795433]
[1761358086783,38.19825878,193.77,193.75,9.4695433]
[1761358087167,38.19825878,193.77,193.75,0.2]
[1761358087374,5.16102394,193.76,193.75,0.2]
[1761358088666,5.16102394,193.76,193.75,0.89]
[1761358088890,5.16102394,193.76,193.75,9.50056746]
[1761358089763,5.16102394,193.76,193.75,8.81056746]
[1761358090379,8.38928272,193.76,193.75,8.81056746]
[1761358090889,8.38928272,193.76,193.75,0.2]
[1761358093274,28.71102394,193.76,193.75,0.2]
[1761358093483,66.23928272,193.76,193.75,0.2]
[1761358094017,66.90928272,193.76,193.75,0.2]
[1761358094907,65.98937967,193.76,193.75,0.2]
[1761358100819,65.31937967,193.76,193.75,0.2]
[1761358101206,65.98937967,193.76,193.75,0.2]
[1761358101534,65.31937967,193.76,193.75,0.2]
[1761358104224,1.63835573,193.8,193.75,0.92]
[1761358104393,5.15969248,193.81,193.76,0.72]
[1761358104715,35.66,193.8,193.77,1.63835573]
[1761358105213,35.66,193.8,193.78,0.72]
[1761358105922,35.66,193.8,193.79,5.36122606]
[1761358106397,5.15942627,193.82,193.79,6.08122606]
[1761358106599,35.66,193.81,193.8,0.72]
[1761358107023,35.66,193.81,193.8,6.08122606]
[1761358108793,40.81969248,193.81,193.8,6.08122606]
[1761358110111,40.81969248,193.81,193.8,5.36122606]
[1761358110707,40.81969248,193.81,193.8,6.08122606]
[1761358111322,35.66,193.81,193.8,6.08122606]
[1761358111535,9.74194199,193.83,193.8,7.71958179]
[1761358111820,45.38194199,193.83,193.81,0.72]
[1761358112320,45.38194199,193.83,193.81,16.21947043]
[1761358112704,45.38194199,193.83,193.82,0.72]
[1761358113108,45.38194199,193.83,193.82,16.21947043]
[1761358113703,45.38194199,193.83,193.82,15.49947043]
[1761358113900,50.54110207,193.83,193.82,15.49947043]
[1761358116605,52.8494578,193.83,193.78,0.72]
[1761358116922,1.63835573,193.81,193.75,6.99941683]
[1761358117131,37.27835573,193.81,193.79,15.50107215]
[1761358117331,1.63835573,193.8,193.79,15.50107215]
[1761358118720,6.79831445,193.8,193.79,15.50107215]
[1761358120228,5.15995872,193.8,193.79,15.50107215]
[1761358125124,5.15995872,193.8,193.77,0.72]
[1761358125321,35.64,193.79,193.77,0.72]
[1761358125517,1.63835573,193.78,193.77,5.36126384]
[1761358125725,1.63835573,193.78,193.75,0.2]
[1761358125726,2.30835573,193.78,193.75,0.2]
[1761358125923,40.8009107,193.77,193.75,0.2]
[1761358127019,1.63835573,193.76,193.75,0.2]
[1761358127616,1.63835573,193.76,193.75,0.92]
[1761358128128,42.43926643,193.77,193.75,0.92]
[1761358129335,42.43926643,193.77,193.75,0.2]
[1761358129917,1.63835573,193.76,193.75,0.2]
[1761358130533,1.63835573,193.76,193.75,0.88]
[1761358132342,42.43926643,193.77,193.75,0.88]
[1761358140435,18.05985552,193.8,193.76,0.67]
[1761358140745,1.63835573,193.77,193.76,0.67]
[1761358140927,37.27835573,193.77,193.75,0.87]
[1761358141121,37.27835573,193.77,193.76,0.67]
[1761358141623,42.43911332,193.77,193.76,0.67]
[1761358142637,35.64,193.77,193.76,0.67]
[1761358145042,40.80075759,193.77,193.76,0.67]
[1761358145341,40.80075759,193.77,193.75,0.87]
[1761358146519,42.43911332,193.77,193.75,0.87]
[1761358147135,1.63835573,193.76,193.75,0.2]
[1761358147536,1.63835573,193.76,193.75,0.87]
[1761358148017,2.32835573,193.76,193.75,0.2]
[1761358148220,104.52835573,193.76,193.75,0.2]
[1761358149230,109.68937967,193.76,193.75,0.2]
[1761358152931,7.48937967,193.76,193.75,0.2]
[1761358154752,8.41130788,193.76,193.75,0.2]
[1761358155541,40.80102394,193.76,193.75,0.87]
[1761358155736,40.80102394,193.76,193.75,0.2]
[1761358155934,43.36130788,193.76,193.75,0.2]
[1761358168048,43.36130788,193.76,193.75,0.92]
[1761358170376,5.16081321,193.77,193.75,0.92]
[1761358170574,5.16081321,193.77,193.76,0.72]
[1761358170575,22.88,193.77,193.76,0.72]
[1761358170739,58.52,193.77,193.76,0.72]
[1761358171674,63.68075759,193.77,193.76,0.72]
[1761358172955,40.80075759,193.77,193.76,0.72]
[1761358173474,35.64,193.77,193.76,0.72]
[1761358175283,5.16004873,193.8,193.76,0.72]
[1761358175575,35.64,193.8,193.76,3.28028394]
[1761358176069,35.64,193.8,193.77,0.72]
[1761358176851,102.2,193.81,193.77,0.72]
[1761358177670,137.84,193.81,193.77,0.72]
[1761358178767,140.40028394,193.81,193.77,0.72]
[1761358179877,145.56007988,193.81,193.77,0.72]
[1761358180068,2.56028394,193.78,193.75,0.92]
[1761358180368,2.56028394,193.78,193.76,0.72]
[1761358181362,43.36061317,193.79,193.76,0.72]
[1761358183964,2.56028394,193.78,193.76,0.72]
[1761358184477,40.80032923,193.79,193.76,0.72]
[1761358184681,35.64,193.79,193.76,0.72]
[1761358188275,5.15996443,193.8,193.76,0.72]
[1761358188479,145.56000463,193.81,193.76,8.44127344]
[1761358188664,3.27028394,193.8,193.76,0.72]
[1761358188986,2.56028394,193.8,193.77,0.72]
[1761358189880,142.99972069,193.81,193.77,0.72]
[1761358190184,145.56000463,193.81,193.77,0.72]
[1761358193280,38.20028394,193.81,193.77,0.72]
[1761358193462,35.64,193.81,193.77,0.72]
[1761358193662,38.20028394,193.81,193.77,0.72]
[1761358198891,43.36006998,193.81,193.77,0.72]
[1761358199113,2.56028394,193.8,193.77,0.72]
[1761358199594,7.7202682,193.8,193.77,0.72]
[1761358199971,2.56028394,193.79,193.77,0.72]
[1761358200279,2.56028394,193.78,193.77,0.72]
[1761358201095,2.56028394,193.78,193.75,5.36126369]
[1761358201282,2.56028394,193.78,193.75,6.07126369]
[1761358201588,2.56028394,193.78,193.76,0.71]
[1761358201965,2.56028394,193.79,193.76,0.71]
[1761358207280,7.7202682,193.8,193.76,0.71]
[1761358209988,2.56028394,193.79,193.76,0.71]
[1761358210293,2.56028394,193.77,193.75,0.2]
[1761358210506,2.56028394,193.76,193.75,0.2]
[1761358211810,2.56028394,193.77,193.75,0.91]
[1761358212329,2.56028394,193.77,193.76,0.71]
[1761358212824,7.72105084,193.77,193.75,0.2]
[1761358213031,7.72105084,193.77,193.75,0.91]
[1761358215114,7.72105084,193.77,193.75,0.2]
[1761358215708,2.56028394,193.76,193.75,0.2]
[1761358215915,7.72130788,193.76,193.75,0.2]
[1761358216829,6.79928616,193.76,193.75,0.2]
[1761358219839,5.16102394,193.76,193.75,0.87]
[1761358226740,5.16102394,193.76,193.75,0.2]
[1761358229216,5.16102394,193.76,193.75,0.87]
[1761358231746,6.79905691,193.77,193.75,0.87]
[1761358236050,5.16079469,193.77,193.75,0.87]
[1761358239541,6.79905691,193.77,193.75,0.87]
[1761358242245,6.79905691,193.77,193.75,0.2]
[1761358242758,7.47905691,193.77,193.75,0.2]
[1761358243641,6.79905691,193.77,193.75,0.2]
[1761358243840,7.47905691,193.77,193.75,0.2]
[1761358245854,6.79928616,193.76,193.75,0.2]
[1761358246051,43.11928616,193.76,193.75,0.2]
[1761358248569,42.43928616,193.76,193.75,0.87]
[1761358249083,42.43928616,193.76,193.75,0.2]
[1761358256684,6.79928616,193.76,193.75,0.2]
[1761358256881,42.43928616,193.76,193.75,0.2]
[1761358262891,43.09928616,193.76,193.75,0.2]
[1761358263394,42.43928616,193.76,193.75,0.2]
[1761358265192,42.43928616,193.76,193.75,0.92]
[1761358265688,6.79928616,193.76,193.75,0.92]
[1761358265890,42.43928616,193.76,193.75,0.2]
[1761358267495,6.79928616,193.76,193.75,0.2]
[1761358267691,42.43928616,193.76,193.75,0.2]
[1761358270190,40.80102394,193.76,193.75,0.92]
[1761358270575,42.43928616,193.76,193.75,0.2]
[1761358271802,40.80102394,193.76,193.75,0.92]
[1761358272987,42.43928616,193.76,193.75,0.2]
[1761358273197,43.09928616,193.76,193.75,0.2]
[1761358275496,42.43928616,193.76,193.75,0.2]
[1761358278713,43.36082723,193.76,193.75,0.2]
[1761358284384,40.80102394,193.76,193.75,0.2]
[1761358284592,43.36082723,193.76,193.75,0.2]
[1761358289989,44.05082723,193.76,193.75,0.2]
[1761358294089,43.36082723,193.76,193.75,0.2]
[1761358300626,44.05082723,193.76,193.75,0.2]
[1761358305626,54.92730244,193.76,193.75,1e-08]
[1761358305925,56.99528744,193.76,193.75,1e-08]
[1761358308119,21.35528744,193.76,193.75,1e-08]
[1761358308422,56.99528744,193.76,193.75,1e-08]
[1761358309826,43.36082723,193.76,193.75,1e-08]
[1761358310213,54.93730244,193.76,193.75,1e-08]
[1761358310916,54.23730244,193.76,193.75,1e-08]
[1761358311420,45.42881223,193.76,193.75,1e-08]
[1761358311622,43.36082723,193.76,193.75,1e-08]
[1761358312204,44.06082723,193.76,193.75,1e-08]
[1761358313625,8.42082723,193.76,193.75,1e-08]
[1761358313827,44.08082723,193.76,193.75,1e-08]
[1761358320128,54.95730244,193.76,193.75,1e-08]
[1761358320729,57.02528744,193.76,193.75,1e-08]
[1761358338747,56.10478822,193.76,193.75,1e-08]
[1761358341246,55.40478822,193.76,193.75,1e-08]
[1761358342947,56.09478822,193.76,193.75,1e-08]
[1761358343826,55.40478822,193.76,193.75,1e-08]
[1761358347153,56.09478822,193.76,193.75,1e-08]
[1761358349135,55.40478822,193.76,193.75,1e-08]
[1761358349646,55.40478822,193.76,193.75,0.65000001]
[1761358350230,55.40478822,193.76,193.75,1e-08]
[1761358351549,53.33680322,193.76,193.75,1e-08]
[1761358351757,55.40478822,193.76,193.75,1e-08]
[1761358353250,53.33680322,193.76,193.75,1e-08]
[1761358354236,42.46032801,193.76,193.75,0.65000001]
[1761358366275,44.5282061,193.76,193.75,0.65000001]
[1761358371800,44.5282061,193.76,193.75,1e-08]
[1761358371801,56.10468131,193.76,193.75,1e-08]
[1761358380293,55.40468131,193.76,193.75,1e-08]
[1761358386285,10.87647521,193.75,193.73,0.2]
[1761358386485,60.17930407,193.74,193.73,0.2]
[1761358386865,62.24739599,193.74,193.73,0.2]
[1761358387071,62.24739599,193.74,193.73,0.87]
[1761358388490,67.40895271,193.74,193.73,0.87]
[1761358390481,67.40895271,193.74,193.73,0.2]
[1761358391501,44.52895271,193.74,193.73,0.2]
[1761358392200,42.88964864,193.74,193.73,0.2]
[1761358392500,44.52895271,193.74,193.73,0.2]
[1761358393482,44.52895271,193.74,193.73,0.87]
[1761358393685,42.46086079,193.74,193.73,0.87]
[1761358394098,44.52895271,193.74,193.73,0.87]
[1761358394308,42.46086079,193.74,193.73,0.87]
[1761358394606,42.46086079,193.74,193.73,0.2]
[1761358395175,42.46086079,193.74,193.73,0.87]
[1761358395691,44.72895271,193.74,193.73,0.87]
[1761358397800,55.60542792,193.74,193.73,1e-08]
[1761358398106,56.30542792,193.74,193.73,1e-08]
[1761358400710,57.2281,193.74,193.73,1e-08]
[1761358402412,33.75647521,193.71,193.69,0.88]
[1761358402591,40.7839523,193.7,193.69,0.88]
[1761358403099,42.85247201,193.7,193.69,0.88]
[1761358404002,45.45311847,193.7,193.69,0.88]
[1761358404503,48.01509462,193.7,193.69,0.2]
[1761358404815,42.89114232,193.7,193.69,0.88]
[1761358405013,45.45311847,193.7,193.69,0.88]
[1761358405212,48.01509462,193.7,193.69,0.2]
[1761358405410,45.45311847,193.7,193.69,0.88]
[1761358412898,43.38459876,193.7,193.69,0.88]
[1761358414905,40.82262261,193.7,193.69,0.88]
[1761358415221,43.38459876,193.7,193.69,0.88]
[1761358421631,40.82262261,193.7,193.69,0.88]
[1761358421836,43.38459876,193.7,193.69,0.88]
[1761358427709,66.26459876,193.7,193.69,0.88]
[1761358446257,63.70262261,193.7,193.69,0.88]
[1761358446433,66.26459876,193.7,193.69,0.88]
[1761358447054,40.82262261,193.7,193.69,0.88]
[1761358447770,9.49758481,193.76,193.69,0.88]
[1761358447771,5.1614989,193.75,193.69,3.44197615]
[1761358447977,30.32,193.74,193.7,0.7]
[1761358448258,53.2,193.74,193.7,0.7]
[1761358448445,55.76197615,193.74,193.7,6.06311331]
[1761358448948,55.76197615,193.74,193.71,0.7]
[1761358449342,58.36164406,193.74,193.71,0.7]
[1761358449537,60.92362021,193.74,193.71,0.7]
[1761358449746,2.56197615,193.73,193.71,0.7]
[1761358449949,38.22197615,193.72,193.71,0.7]
[1761358451152,43.38406576,193.72,193.71,0.7]
[1761358456468,40.82208961,193.72,193.71,0.7]
[1761358456662,43.38406576,193.72,193.71,0.7]
[1761358459771,40.82208961,193.72,193.71,0.7]
[1761358459949,43.38406576,193.72,193.71,0.7]
[1761358460754,42.46112749,193.72,193.71,0.7]
[1761358461071,55.36635152,193.72,193.69,0.89]
[1761358461277,1.63903788,193.7,193.69,0.89]
[1761358461573,37.27903788,193.7,193.69,0.89]
[1761358462467,42.44166049,193.7,193.69,0.89]
[1761358467583,35.64,193.7,193.69,0.89]
[1761358467957,37.27903788,193.7,193.69,0.89]
[1761358475978,35.64,193.7,193.69,0.89]
[1761358483084,40.80262261,193.7,193.69,0.89]